fUST/lending_fUST_20250214
["ID","MTS","AMOUNT","RATE_DAILY","PERIOD"]
[353026354,1739491840991,-500.0,0.00013863,2]
[353026355,1739491841000,-500.0,0.00013863,2]
[353026356,1739491841011,-500.0,0.00013863,2]
[353026357,1739491841020,-500.0,0.00013863,2]
[353026358,1739491841030,-500.59,0.00013863,2]
[353026359,1739491841039,-500.0,0.00013863,2]
[353026360,1739491841049,-500.0,0.00013863,2]
[353026361,1739491841059,-500.0,0.00013863,2]
[353026362,1739491841068,-2064.85,0.00013863,2]
[353026363,1739491841078,-500.0,0.00013863,2]
[353026364,1739491841087,-500.0,0.00013863,2]
[353026365,1739491841096,-500.0,0.00013863,2]
[353026366,1739491841106,-500.0,0.00013863,2]
[353026367,1739491841116,-500.0,0.00013863,2]
[353026368,1739491841125,-500.0,0.00013863,2]
[353026369,1739491841135,-500.0,0.00013863,2]
[353026370,1739491841144,-500.0,0.00013863,2]
[353026371,1739491841153,-656.27,0.00013863,2]
[353026372,1739491841162,-500.0,0.00013863,2]
[353026373,1739491841171,-217.28918862,0.00013863,2]
[353026374,1739491841180,-914.37,0.00013863,2]
[353026375,1739491841190,-500.0,0.00013863,2]
[353026376,1739491841198,-500.0,0.00013863,2]
[353026377,1739491841208,-500.0,0.00013863,2]
[353026378,1739491841217,-500.0,0.00013863,2]
[353026379,1739491841226,-1083.87,0.00013863,2]
[353026380,1739491841235,-500.0,0.00013863,2]
[353026381,1739491841245,-500.0,0.00013863,2]
[353026382,1739491841255,-781.72,0.00013863,2]
[353026383,1739491841264,-500.0,0.00013863,2]
[353026384,1739491841273,-500.0,0.00013863,2]
[353026385,1739491841282,-500.0,0.00013863,2]
[353026386,1739491841291,-500.0,0.00013863,2]
[353026387,1739491841301,-500.0,0.00013863,2]
[353026388,1739491841310,-500.0,0.00013863,2]
[353026389,1739491841319,-500.0,0.00013863,2]
[353026390,1739491841328,-500.0,0.00013863,2]
[353026391,1739491841337,-500.0,0.00013863,2]
[353026392,1739491841347,-500.0,0.00013863,2]
[353026393,1739491841356,-500.0,0.00013863,2]
[353026394,1739491841367,-4033.2,0.00013863,2]
[353026395,1739491841376,-1063.83,0.00013863,2]
[353026396,1739491841385,-512.35,0.00013863,2]
[353026397,1739491841396,-500.0,0.00013863,2]
[353026398,1739491841406,-500.0,0.00013863,2]
[353026399,1739491841416,-10255.86,0.00013863,2]
[353026400,1739491841425,-4867.09,0.00013869,2]
[353026401,1739491841435,-4867.09,0.00013869,2]
[353026402,1739491841453,-4867.09,0.00013869,2]
[353026403,1739491841463,-4867.09,0.00013869,2]
[353026404,1739491841472,-4867.21,0.00013869,2]
[353026405,1739491841482,-500.0,0.0001392,2]
[353026406,1739491841493,-500.0,0.0001392,2]
[353026407,1739491841503,-500.0,0.0001392,2]
[353026408,1739491841513,-500.0,0.0001392,2]
[353026409,1739491841524,-2529.65,0.0001392,2]
[353026410,1739491841535,-2529.65,0.0001392,2]
[353026411,1739491841546,-600.0,0.0001392,2]
[353026412,1739491841556,-153.0,0.00013921,2]
[353026413,1739491841566,-153.0,0.00013921,2]
[353026414,1739491841575,-153.0,0.00013921,2]
[353026415,1739491841699,-153.0,0.00013921,2]
[353026416,1739491841709,-153.0,0.00013921,2]
[353026417,1739491841719,-153.0,0.00013921,2]
[353026418,1739491841728,-153.0,0.00013921,2]
[353026419,1739491841738,-153.0,0.00013921,2]
[353026420,1739491841747,-153.0,0.00013921,2]
[353026421,1739491841756,-153.0,0.00013921,2]
[353026422,1739491841766,-153.0,0.00013921,2]
[353026423,1739491841775,-153.0,0.00013921,2]
[353026424,1739491841785,-153.0,0.00013921,2]
[353026425,1739491841794,-153.0,0.00013921,2]
[353026426,1739491841803,-153.0,0.00013921,2]
[353026427,1739491841813,-153.0,0.00013921,2]
[353026428,1739491841822,-153.0,0.00013921,2]
[353026429,1739491841831,-153.0,0.00013921,2]
[353026430,1739491841841,-153.0,0.00013921,2]
[353026431,1739491841850,-153.0,0.00013921,2]
[353026432,1739491841860,-153.0,0.00013921,2]
[353026433,1739491841870,-153.0,0.00013921,2]
[353026434,1739491841879,-153.0,0.00013921,2]
[353026435,1739491841889,-153.0,0.00013921,2]
[353026436,1739491841898,-153.0,0.00013921,2]
[353026437,1739491841907,-153.0,0.00013921,2]
[353026438,1739491841916,-153.0,0.00013921,2]
[353026439,1739491841925,-153.0,0.00013921,2]
[353026440,1739491841935,-153.0,0.00013921,2]
[353026441,1739491841944,-153.0,0.00013921,2]
[353026442,1739491841953,-153.0,0.00013921,2]
[353026443,1739491841963,-153.0,0.00013921,2]
[353026444,1739491841977,-153.0,0.00013921,2]
[353026445,1739491841987,-153.0,0.00013921,2]
[353026446,1739491841996,-153.0,0.00013921,2]
[353026447,1739491842006,-153.0,0.00013921,2]
[353026448,1739491842017,-153.0,0.00013921,2]
[353026449,1739491842027,-153.0,0.00013921,2]
[353026450,1739491842036,-153.0,0.00013921,2]
[353026451,1739491842047,-153.0,0.00013921,2]
[353026452,1739491842056,-153.0,0.00013921,2]
[353026453,1739491842065,-153.0,0.00013921,2]
[353026454,1739491842075,-153.0,0.00013921,2]
[353026455,1739491842084,-153.0,0.00013921,2]
[353026456,1739491842094,-153.0,0.00013921,2]
[353026457,1739491842103,-153.0,0.00013921,2]
[353026458,1739491842113,-153.0,0.00013921,2]
[353026459,1739491842122,-153.0,0.00013921,2]
[353026460,1739491842132,-153.0,0.00013921,2]
[353026461,1739491842141,-153.0,0.00013921,2]
[353026462,1739491842151,-153.0,0.00013921,2]
[353026463,1739491842160,-153.0,0.00013921,2]
[353026464,1739491842169,-153.0,0.00013921,2]
[353026465,1739491842179,-153.0,0.00013921,2]
[353026466,1739491842188,-153.0,0.00013921,2]
[353026467,1739491842197,-153.0,0.00013921,2]
[353026468,1739491842206,-153.0,0.00013921,2]
[353026469,1739491842215,-153.0,0.00013921,2]
[353026470,1739491842226,-153.0,0.00013921,2]
[353026471,1739491842235,-153.0,0.00013921,2]
[353026472,1739491842244,-153.0,0.00013921,2]
[353026473,1739491842253,-153.0,0.00013921,2]
[353026474,1739491842262,-153.0,0.00013921,2]
[353026475,1739491842271,-153.0,0.00013921,2]
[353026476,1739491842281,-153.0,0.00013921,2]
[353026477,1739491842290,-153.0,0.00013921,2]
[353026478,1739491842299,-153.0,0.00013921,2]
[353026479,1739491842308,-153.0,0.00013921,2]
[353026480,1739491842318,-153.0,0.00013921,2]
[353026481,1739491842327,-153.0,0.00013921,2]
[353026482,1739491842339,-153.0,0.00013921,2]
[353026483,1739491842350,-153.0,0.00013921,2]
[353026484,1739491842361,-153.0,0.00013921,2]
[353026485,1739491842371,-153.0,0.00013921,2]
[353026486,1739491842380,-153.0,0.00013921,2]
[353026487,1739491842389,-153.0,0.00013921,2]
[353026488,1739491842399,-153.0,0.00013921,2]
[353026489,1739491842409,-153.0,0.00013921,2]
[353026490,1739491842418,-153.0,0.00013921,2]
[353026491,1739491842427,-153.0,0.00013921,2]
[353026492,1739491842437,-153.0,0.00013921,2]
[353026493,1739491842446,-153.0,0.00013921,2]
[353026494,1739491842455,-153.0,0.00013921,2]
[353026495,1739491842465,-153.0,0.00013921,2]
[353026496,1739491842474,-153.0,0.00013921,2]
[353026497,1739491842483,-153.0,0.00013921,2]
[353026498,1739491842493,-153.0,0.00013921,2]
[353026499,1739491842512,-153.0,0.00013921,2]
[353026500,1739491842522,-153.0,0.00013921,2]
[353026501,1739491842531,-153.0,0.00013921,2]
[353026502,1739491842541,-153.0,0.00013921,2]
[353026503,1739491842551,-153.0,0.00013921,2]
[353026504,1739491842561,-153.0,0.00013921,2]
[353026505,1739491842571,-153.0,0.00013921,2]
[353026506,1739491842581,-153.0,0.00013921,2]
[353026507,1739491842590,-153.0,0.00013921,2]
[353026508,1739491842600,-153.0,0.00013921,2]
[353026510,1739491842610,-153.0,0.00013921,2]
[353026512,1739491842619,-153.0,0.00013921,2]
[353026513,1739491842629,-153.0,0.00013921,2]
[353026515,1739491842638,-153.0,0.00013921,2]
[353026516,1739491842648,-153.0,0.00013921,2]
[353026517,1739491842657,-153.0,0.00013921,2]
[353026518,1739491842666,-153.0,0.00013921,2]
[353026519,1739491842675,-153.0,0.00013921,2]
[353026520,1739491842685,-153.0,0.00013921,2]
[353026521,1739491842695,-153.0,0.00013921,2]
[353026522,1739491842704,-153.0,0.00013921,2]
[353026524,1739491842714,-153.0,0.00013921,2]
[353026525,1739491842724,-153.0,0.00013921,2]
[353026526,1739491842734,-153.0,0.00013921,2]
[353026527,1739491842744,-153.0,0.00013921,2]
[353026528,1739491842754,-153.0,0.00013921,2]
[353026530,1739491842764,-216.0,0.00013921,2]
[353026531,1739491842774,-216.0,0.00013921,2]
[353026532,1739491842783,-216.0,0.00013921,2]
[353026533,1739491842793,-216.0,0.00013921,2]
[353026534,1739491842803,-216.0,0.00013921,2]
[353026535,1739491842812,-216.0,0.00013921,2]
[353026537,1739491842822,-216.0,0.00013921,2]
[353026538,1739491842831,-216.0,0.00013921,2]
[353026539,1739491842842,-216.0,0.00013921,2]
[353026540,1739491842853,-216.0,0.00013921,2]
[353026541,1739491842863,-216.0,0.00013921,2]
[353026543,1739491842872,-216.0,0.00013921,2]
[353026545,1739491842882,-216.0,0.00013921,2]
[353026546,1739491842892,-216.0,0.00013921,2]
[353026547,1739491842903,-216.0,0.00013921,2]
[353026548,1739491842912,-216.0,0.00013921,2]
[353026549,1739491842922,-216.0,0.00013921,2]
[353026550,1739491842932,-216.0,0.00013921,2]
[353026551,1739491842941,-216.0,0.00013921,2]
[353026552,1739491842952,-216.0,0.00013921,2]
[353026553,1739491842962,-216.0,0.00013921,2]
[353026554,1739491842975,-216.0,0.00013921,2]
[353026556,1739491842986,-216.0,0.00013921,2]
[353026557,1739491842995,-216.0,0.00013921,2]
[353026558,1739491843007,-216.0,0.00013921,2]
[353026559,1739491843019,-216.0,0.00013921,2]
[353026561,1739491843029,-216.0,0.00013921,2]
[353026563,1739491843039,-216.0,0.00013921,2]
[353026564,1739491843050,-216.0,0.00013921,2]
[353026566,1739491843059,-216.0,0.00013921,2]
[353026567,1739491843069,-216.0,0.00013921,2]
[353026568,1739491843079,-201.0,0.00013921,2]
[353026569,1739491843089,-201.0,0.00013921,2]
[353026570,1739491843099,-201.0,0.00013921,2]
[353026571,1739491843108,-201.0,0.00013921,2]
[353026572,1739491843118,-201.0,0.00013921,2]
[353026573,1739491843127,-201.0,0.00013921,2]
[353026574,1739491843137,-201.0,0.00013921,2]
[353026575,1739491843147,-201.0,0.00013921,2]
[353026576,1739491843158,-201.0,0.00013921,2]
[353026577,1739491843168,-201.0,0.00013921,2]
[353026578,1739491843178,-201.0,0.00013921,2]
[353026579,1739491843188,-201.0,0.00013921,2]
[353026580,1739491843198,-201.0,0.00013921,2]
[353026581,1739491843207,-201.0,0.00013921,2]
[353026582,1739491843216,-201.0,0.00013921,2]
[353026583,1739491843225,-201.0,0.00013921,2]
[353026584,1739491843236,-201.0,0.00013921,2]
[353026585,1739491843246,-201.0,0.00013921,2]
[353026586,1739491843255,-201.0,0.00013921,2]
[353026587,1739491843264,-201.0,0.00013921,2]
[353026588,1739491843273,-201.0,0.00013921,2]
[353026589,1739491843283,-201.0,0.00013921,2]
[353026590,1739491843292,-201.0,0.00013921,2]
[353026591,1739491843301,-201.0,0.00013921,2]
[353026592,1739491843311,-201.0,0.00013921,2]
[353026593,1739491843320,-201.0,0.00013921,2]
[353026594,1739491843329,-201.0,0.00013921,2]
[353026595,1739491843340,-201.0,0.00013921,2]
[353026596,1739491843350,-201.0,0.00013921,2]
[353026597,1739491843360,-201.0,0.00013921,2]
[353026598,1739491843370,-201.0,0.00013921,2]
[353026599,1739491843379,-201.0,0.00013921,2]
[353026600,1739491843389,-201.0,0.00013921,2]
[353026601,1739491843399,-201.0,0.00013921,2]
[353026602,1739491843408,-201.0,0.00013921,2]
[353026603,1739491843418,-201.0,0.00013921,2]
[353026604,1739491843427,-201.0,0.00013921,2]
[353026605,1739491843436,-201.0,0.00013921,2]
[353026606,1739491843445,-201.0,0.00013921,2]
[353026607,1739491843454,-201.0,0.00013921,2]
[353026608,1739491843463,-201.0,0.00013921,2]
[353026609,1739491843473,-201.0,0.00013921,2]
[353026610,1739491843482,-201.0,0.00013921,2]
[353026611,1739491843491,-201.0,0.00013921,2]
[353026612,1739491843501,-201.0,0.00013921,2]
[353026613,1739491843510,-201.0,0.00013921,2]
[353026614,1739491843519,-201.0,0.00013921,2]
[353026615,1739491843528,-201.0,0.00013921,2]
[353026616,1739491843538,-201.0,0.00013921,2]
[353026617,1739491843547,-201.0,0.00013921,2]
[353026618,1739491843557,-201.0,0.00013921,2]
[353026619,1739491843566,-201.0,0.00013921,2]
[353026620,1739491843576,-201.0,0.00013921,2]
[353026621,1739491843586,-201.0,0.00013921,2]
[353026622,1739491843595,-201.0,0.00013921,2]
[353026623,1739491843604,-201.0,0.00013921,2]
[353026624,1739491843616,-10949.20140805,0.00013923,2]
[353026625,1739491843626,-184.63739066,0.00013927,2]
[353026626,1739491843637,-500.0,0.00013944,2]
[353026627,1739491843646,-500.0,0.00013944,2]
[353026628,1739491843656,-500.0,0.00013944,2]
[353026629,1739491843666,-2529.65,0.00013944,2]
[353026630,1739491843676,-2529.65,0.00013944,2]
[353026631,1739491843686,-500.0,0.00013945,2]
[353026632,1739491843696,-500.0,0.00013945,2]
[353026633,1739491843705,-500.0,0.00013945,2]
[353026634,1739491843715,-500.0,0.00013945,2]
[353026635,1739491843725,-500.0,0.00013945,2]
[353026636,1739491843735,-597.43,0.00013945,2]
[353026637,1739491843745,-500.0,0.00013945,2]
[353026638,1739491843754,-500.0,0.00013945,2]
[353026639,1739491843764,-166.69536,0.00013945,2]
[353026640,1739491843774,-500.0,0.00013945,2]
[353026641,1739491843783,-500.0,0.00013945,2]
[353026642,1739491843793,-500.0,0.00013945,2]
[353026643,1739491843803,-500.59,0.00013945,2]
[353026644,1739491843812,-500.0,0.00013945,2]
[353026645,1739491843821,-531.17,0.00013945,2]
[353026646,1739491843831,-500.0,0.00013945,2]
[353026647,1739491843841,-2064.85,0.00013945,2]
[353026648,1739491843850,-500.0,0.00013945,2]
[353026649,1739491843861,-241.99,0.00013945,2]
[353026650,1739491843873,-500.0,0.00013945,2]
[353026651,1739491843883,-500.0,0.00013945,2]
[353026652,1739491843893,-500.0,0.00013945,2]
[353026653,1739491843903,-500.0,0.00013945,2]
[353026654,1739491843912,-656.27,0.00013945,2]
[353026655,1739491843921,-914.37,0.00013945,2]
[353026656,1739491843931,-500.0,0.00013945,2]
[353026657,1739491843940,-500.0,0.00013945,2]
[353026658,1739491843949,-500.0,0.00013945,2]
[353026659,1739491843958,-1083.87,0.00013945,2]
[353026660,1739491843968,-500.0,0.00013945,2]
[353026661,1739491843980,-500.0,0.00013945,2]
[353026662,1739491843990,-781.72,0.00013945,2]
[353026663,1739491844000,-500.0,0.00013945,2]
[353026664,1739491844011,-500.0,0.00013945,2]
[353026665,1739491844020,-500.0,0.00013945,2]
[353026666,1739491844029,-500.0,0.00013945,2]
[353026667,1739491844039,-500.0,0.00013945,2]
[353026668,1739491844051,-632.95,0.00013945,2]
[353026669,1739491844060,-500.0,0.00013945,2]
[353026670,1739491844070,-500.0,0.00013945,2]
[353026671,1739491844079,-4033.2,0.00013945,2]
[353026672,1739491844089,-1063.83,0.00013945,2]
[353026673,1739491844098,-512.35,0.00013945,2]
[353026674,1739491844107,-500.0,0.00013945,2]
[353026675,1739491844118,-500.0,0.00013945,2]
[353026676,1739491844127,-10255.86,0.00013945,2]
[353026677,1739491844165,-168.28909487,0.00013973,2]
[353026678,1739491844175,-168.2461105,0.00013973,2]
[353026679,1739491844185,-500.0,0.00013985,2]
[353026680,1739491844194,-354.9488798,0.00014,2]
[353026681,1739491844203,-354.9488798,0.00014,2]
[353026682,1739491844212,-354.9488798,0.00014,2]
[353026683,1739491844222,-500.0,0.00014026,2]
[353026684,1739491844231,-500.0,0.00014026,2]
[353026685,1739491844240,-2529.65,0.00014026,2]
[353026686,1739491844250,-500.0,0.00014027,2]
[353026687,1739491844259,-500.0,0.00014027,2]
[353026688,1739491844269,-500.0,0.00014027,2]
[353026689,1739491844279,-500.0,0.00014027,2]
[353026690,1739491844288,-500.0,0.00014027,2]
[353026691,1739491844298,-500.59,0.00014027,2]
[353026692,1739491844307,-500.0,0.00014027,2]
[353026693,1739491844316,-500.0,0.00014027,2]
[353026694,1739491844326,-2064.85,0.00014027,2]
[353026695,1739491844335,-500.0,0.00014027,2]
[353026696,1739491844345,-500.0,0.00014027,2]
[353026697,1739491844355,-500.0,0.00014027,2]
[353026698,1739491844365,-656.27,0.00014027,2]
[353026699,1739491844375,-914.37,0.00014027,2]
[353026700,1739491844385,-500.0,0.00014027,2]
[353026701,1739491844395,-500.0,0.00014027,2]
[353026702,1739491844404,-1083.87,0.00014027,2]
[353026703,1739491844414,-500.0,0.00014027,2]
[353026704,1739491844423,-781.72,0.00014027,2]
[353026705,1739491844433,-500.0,0.00014027,2]
[353026706,1739491844442,-500.0,0.00014027,2]
[353026707,1739491844453,-500.0,0.00014027,2]
[353026708,1739491844463,-500.0,0.00014027,2]
[353026709,1739491844472,-4033.2,0.00014027,2]
[353026710,1739491844481,-1063.83,0.00014027,2]
[353026711,1739491844491,-512.35,0.00014027,2]
[353026712,1739491844500,-500.0,0.00014027,2]
[353026713,1739491844510,-500.0,0.00014027,2]
[353026714,1739491844519,-10255.86,0.00014027,2]
[353026715,1739491844529,-500.0,0.00014081,2]
[353026716,1739491844538,-2529.65,0.00014107,2]
[353026717,1739491844548,-500.0,0.00014108,2]
[353026718,1739491844558,-581.26,0.00014108,2]
[353026719,1739491844568,-2529.65,0.00014108,2]
[353026720,1739491844577,-500.0,0.00014109,2]
[353026721,1739491844587,-570.29,0.00014109,2]
[353026722,1739491844597,-500.0,0.00014109,2]
[353026723,1739491844607,-500.59,0.00014109,2]
[353026724,1739491844620,-500.0,0.00014109,2]
[353026725,1739491844630,-2064.85,0.00014109,2]
[353026726,1739491844639,-500.0,0.00014109,2]
[353026727,1739491844650,-500.0,0.00014109,2]
[353026728,1739491844660,-656.27,0.00014109,2]
[353026729,1739491844670,-914.37,0.00014109,2]
[353026730,1739491844680,-500.0,0.00014109,2]
[353026731,1739491844691,-1083.87,0.00014109,2]
[353026732,1739491844701,-500.0,0.00014109,2]
[353026733,1739491844711,-781.72,0.00014109,2]
[353026734,1739491844721,-500.0,0.00014109,2]
[353026735,1739491844731,-500.0,0.00014109,2]
[353026736,1739491844742,-212.94496433,0.00014109,2]
[353026737,1739491844752,-500.0,0.00014109,2]
[353026738,1739491844762,-4033.2,0.00014109,2]
[353026739,1739491844771,-1063.83,0.00014109,2]
[353026740,1739491844781,-512.35,0.00014109,2]
[353026741,1739491844790,-500.0,0.00014109,2]
[353026742,1739491844800,-10255.86,0.00014109,2]
[353026743,1739491844810,-224.3768216,0.0001411,2]
[353026744,1739491844819,-153.0,0.0001411,2]
[353026745,1739491844829,-153.0,0.0001411,2]
[353026746,1739491844844,-168.28909487,0.00014137,2]
[353026747,1739491844862,-2529.65,0.0001419,2]
[353026748,1739491844871,-2529.65,0.0001419,2]
[353026749,1739491844882,-2529.65,0.0001419,2]
[353026750,1739491844891,-2529.65,0.0001419,2]
[353026751,1739491844901,-2529.66,0.0001419,2]
[353026752,1739491844911,-470.326122,0.0001419,2]
[353026753,1739491844922,-470.326122,0.0001419,2]
[353026754,1739491844931,-219.502976,0.0001419,2]
[353026755,1739491844941,-219.502976,0.0001419,2]
[353026756,1739491844952,-634.772422,0.0001419,2]
[353026757,1739491844962,-634.772422,0.0001419,2]
[353026758,1739491844979,-500.0,0.00014191,2]
[353026759,1739491844989,-500.0,0.00014191,2]
[353026760,1739491844999,-500.59,0.00014191,2]
[353026761,1739491845022,-500.0,0.00014191,2]
[353026762,1739491845033,-2064.85,0.00014191,2]
[353026763,1739491845047,-500.0,0.00014191,2]
[353026764,1739491845060,-500.0,0.00014191,2]
[353026765,1739491845071,-656.27,0.00014191,2]
[353026766,1739491845082,-914.37,0.00014191,2]
[353026767,1739491845093,-583.85438677,0.00014191,2]
[353026768,1739491845103,-1083.87,0.00014191,2]
[353026769,1739491845115,-500.0,0.00014191,2]
[353026770,1739491845125,-781.72,0.00014191,2]
[353026771,1739491845135,-500.0,0.00014191,2]
[353026772,1739491845145,-500.0,0.00014191,2]
[353026773,1739491845156,-500.0,0.00014191,2]
[353026774,1739491845166,-4033.2,0.00014191,2]
[353026775,1739491845177,-1063.83,0.00014191,2]
[353026776,1739491845187,-512.35,0.00014191,2]
[353026777,1739491845199,-500.0,0.00014191,2]
[353026778,1739491845210,-10255.86,0.00014191,2]
[353026779,1739491845221,-467.151,0.00014199,2]
[353026780,1739491845233,-557.3452282,0.00014218,2]
[353026781,1739491845245,-396.0,0.0001424,2]
[353026782,1739491845256,-588.6924904,0.00014255,2]
[353026783,1739491845267,-500.0,0.00014272,2]
[353026784,1739491845278,-270.77385282,0.00014272,2]
[353026785,1739491845288,-500.0,0.00014272,2]
[353026786,1739491845298,-500.0,0.00014272,2]
[353026787,1739491845308,-500.0,0.00014272,2]
[353026788,1739491845318,-294.3263962,0.00014272,2]
[353026789,1739491845329,-500.0,0.00014272,2]
[353026790,1739491845339,-500.0,0.00014273,2]
[353026791,1739491845349,-500.0,0.00014273,2]
[353026792,1739491845359,-500.59,0.00014273,2]
[353026793,1739491845370,-500.0,0.00014273,2]
[353026794,1739491845381,-2064.85,0.00014273,2]
[353026795,1739491845392,-500.0,0.00014273,2]
[353026796,1739491845402,-500.0,0.00014273,2]
[353026797,1739491845412,-656.27,0.00014273,2]
[353026798,1739491845424,-914.37,0.00014273,2]
[353026799,1739491845434,-1083.87,0.00014273,2]
[353026800,1739491845445,-500.0,0.00014273,2]
[353026801,1739491845455,-151.0,0.00014273,2]
[353026802,1739491845466,-151.0,0.00014273,2]
[353026803,1739491845476,-781.72,0.00014273,2]
[353026804,1739491845487,-500.0,0.00014273,2]
[353026805,1739491845499,-643.2,0.00014273,2]
[353026806,1739491845511,-902.934532,0.00014273,2]
[353026807,1739491845521,-902.934532,0.00014273,2]
[353026808,1739491845532,-500.0,0.00014273,2]
[353026809,1739491845543,-4033.2,0.00014273,2]
[353026810,1739491845555,-1063.83,0.00014273,2]
[353026811,1739491845566,-512.35,0.00014273,2]
[353026812,1739491845578,-500.0,0.00014273,2]
[353026813,1739491845588,-10255.86,0.00014273,2]
[353026814,1739491845598,-1100.29498512,0.000143,2]
[353026815,1739491845609,-538.0,0.00014335,2]
[353026816,1739491845620,-1975.0,0.00014335,2]
[353026817,1739491845631,-1670.245,0.00014335,2]
[353026818,1739491845641,-1100.29498512,0.0001435,2]
[353026819,1739491845651,-500.0,0.00014356,2]
[353026820,1739491845662,-500.0,0.00014356,2]
[353026821,1739491845672,-500.59,0.00014356,2]
[353026822,1739491845683,-500.0,0.00014356,2]
[353026823,1739491845693,-2064.85,0.00014356,2]
[353026825,1739491845704,-500.0,0.00014356,2]
[353026826,1739491845716,-500.0,0.00014356,2]
[353026827,1739491845726,-656.27,0.00014356,2]
[353026828,1739491845737,-914.37,0.00014356,2]
[353026829,1739491845749,-1083.87,0.00014356,2]
[353026830,1739491845759,-500.0,0.00014356,2]
[353026831,1739491845770,-781.72,0.00014356,2]
[353026832,1739491845781,-340.4,0.00014356,2]
[353026833,1739491845792,-500.0,0.00014356,2]
[353026835,1739491845803,-4033.2,0.00014356,2]
[353026836,1739491845814,-1063.83,0.00014356,2]
[353026837,1739491845825,-512.35,0.00014356,2]
[353026838,1739491845835,-500.0,0.00014356,2]
[353026839,1739491845846,-10255.86,0.00014356,2]
[353026840,1739491845857,-1100.0,0.00014363,2]
[353026842,1739491845869,-289.38353378,0.00014398,2]
[353026844,1739491845880,-9603.2242616,0.000144,5]
[353026845,1739491845893,-10325.94635449,0.000144,5]
[353026846,1739491845904,-166524.26054869,0.000144,5]
[353026897,1739493032205,-400.0,0.00010685,2]
[353026898,1739493032215,-609.75,0.00010959,2]
[353026900,1739493032225,-1100.0,0.00012993,2]
[353026902,1739493032234,-447.21244403,0.00013448,2]
[353026903,1739493032244,-1143.78694891,0.00013598,2]
[353026904,1739493032253,-150.97999299,0.00013598,2]
[353026905,1739493032264,-168.23651707,0.00013616,2]
[353026906,1739493032274,-150.97999298,0.00013639,2]
[353026907,1739493032283,-500.0,0.00013673,2]
[353026908,1739493032293,-500.0,0.00013673,2]
[353026909,1739493032302,-501.06497912,0.00013673,2]
[353026910,1739493032311,-150.97999298,0.00013681,2]
[353026911,1739493032321,-134.23819603,0.00013696,2]
[353026912,1739493032350,-165.76180397,0.00013696,2]
[353026913,1739493032360,-500.0,0.00013697,2]
[353026914,1739493032374,-500.0,0.00013697,2]
[353026915,1739493032385,-500.0,0.00013697,2]
[353026916,1739493032394,-500.0,0.00013697,2]
[353026917,1739493032404,-367.37080808,0.00013697,2]
[353026918,1739493032414,-459.80503063,0.00013697,2]
[353026919,1739493032424,-500.0,0.00013698,2]
[353026920,1739493032433,-500.0,0.00013698,2]
[353026921,1739493032443,-500.0,0.00013698,2]